[Event "Live Chess"]
[Site "Chess.com"]
[Date "2023.05.21"]
[Round "-"]
[White "diana21strabt"]
[Black "Hacker_2009"]
[Result "0-1"]
[WhiteElo "1717"]
[BlackElo "1940"]
[TimeControl "300"]
[EndTime "23:52:55 PDT"]
[Termination "Hacker_2009 won by checkmate"]

1. e4 {[%clk 0:04:57.5]} 1... c5 {[%clk 0:04:58.5]} 2. Nf3 {[%clk 0:04:56]} 2...
d6 {[%clk 0:04:57.4]} 3. d4 {[%clk 0:04:54]} 3... cxd4 {[%clk 0:04:56.2]} 4.
Nxd4 {[%clk 0:04:53]} 4... Nf6 {[%clk 0:04:55.8]} 5. Nc3 {[%clk 0:04:51.5]} 5...
a6 {[%clk 0:04:55.5]} 6. Bg5 {[%clk 0:04:49.3]} 6... e6 {[%clk 0:04:54.7]} 7. f4
{[%clk 0:04:47.8]} 7... Be7 {[%clk 0:04:53.7]} 8. Qf3 {[%clk 0:04:45.4]} 8...
O-O {[%clk 0:04:51.7]} 9. g4 {[%clk 0:04:43.6]} 9... Nc6 {[%clk 0:04:48.4]} 10.
Nxc6 {[%clk 0:04:27.9]} 10... bxc6 {[%clk 0:04:46.6]} 11. Bxf6 {[%clk
0:04:26.2]} 11... Bxf6 {[%clk 0:04:44.9]} 12. g5 {[%clk 0:04:25]} 12... Be7
{[%clk 0:04:43.3]} 13. h4 {[%clk 0:04:21.9]} 13... d5 {[%clk 0:04:41.2]} 14.
exd5 {[%clk 0:04:18.2]} 14... cxd5 {[%clk 0:04:38]} 15. Bd3 {[%clk 0:04:16.8]}
15... Qb6 {[%clk 0:04:35.4]} 16. O-O-O {[%clk 0:04:09.7]} 16... Bb7 {[%clk
0:04:32.8]} 17. h5 {[%clk 0:04:03.8]} 17... d4 {[%clk 0:04:30.5]} 18. Ne4 {[%clk
0:04:02.5]} 18... Bd5 {[%clk 0:04:22.3]} 19. g6 {[%clk 0:03:47.8]} 19... fxg6
{[%clk 0:04:00.2]} 20. hxg6 {[%clk 0:03:45.4]} 20... h6 {[%clk 0:03:58.9]} 21.
Rh5 {[%clk 0:03:12.1]} 21... Rab8 {[%clk 0:03:54.7]} 22. b3 {[%clk 0:03:09.5]}
22... Qa5 {[%clk 0:03:48.8]} 23. Kb1 {[%clk 0:02:56.2]} 23... Ba3 {[%clk
0:03:38.4]} 24. Rxd5 {[%clk 0:02:48.8]} 24... Qxd5 {[%clk 0:03:27.1]} 25. Nd2
{[%clk 0:02:46.3]} 25... Qxf3 {[%clk 0:03:24.3]} 26. Nxf3 {[%clk 0:02:45.1]}
26... Rxf4 {[%clk 0:03:23.1]} 27. Be2 {[%clk 0:02:31.2]} 27... Rd8 {[%clk
0:03:09.5]} 28. c3 {[%clk 0:02:27.8]} 28... Bc5 {[%clk 0:03:06.2]} 29. cxd4
{[%clk 0:02:26.1]} 29... Bxd4 {[%clk 0:03:04.3]} 30. Nxd4 {[%clk 0:02:20.2]}
30... Rfxd4 {[%clk 0:03:01.3]} 31. Rxd4 {[%clk 0:02:19.1]} 31... Rxd4 {[%clk
0:02:59.6]} 32. Bxa6 {[%clk 0:02:17.9]} 32... h5 {[%clk 0:02:52.5]} 33. Bc8
{[%clk 0:02:13.2]} 33... Re4 {[%clk 0:02:43.3]} 34. Kc2 {[%clk 0:02:11.6]} 34...
h4 {[%clk 0:02:41.4]} 35. Kd3 {[%clk 0:02:10.2]} 35... Re1 {[%clk 0:02:38.5]}
36. a4 {[%clk 0:02:05.2]} 36... h3 {[%clk 0:02:37.3]} 37. Bb7 {[%clk 0:02:03.2]}
37... h2 {[%clk 0:02:36.3]} 38. a5 {[%clk 0:02:01.3]} 38... h1=Q {[%clk
0:02:35]} 39. Bxh1 {[%clk 0:01:59.9]} 39... Rxh1 {[%clk 0:02:34.9]} 40. b4
{[%clk 0:01:58.8]} 40... Ra1 {[%clk 0:02:31.1]} 41. Kc4 {[%clk 0:01:56.9]} 41...
Kf8 {[%clk 0:02:30.4]} 42. Kb5 {[%clk 0:01:55.6]} 42... Ke7 {[%clk 0:02:29]} 43.
a6 {[%clk 0:01:54.7]} 43... e5 {[%clk 0:02:27.9]} 44. Kb6 {[%clk 0:01:53]} 44...
e4 {[%clk 0:02:26.9]} 45. b5 {[%clk 0:01:52.3]} 45... e3 {[%clk 0:02:26]} 46. a7
{[%clk 0:01:51.6]} 46... e2 {[%clk 0:02:24.8]} 47. Kb7 {[%clk 0:01:50.5]} 47...
e1=Q {[%clk 0:02:23]} 48. b6 {[%clk 0:01:49.7]} 48... Qe4+ {[%clk 0:02:20.4]}
49. Kb8 {[%clk 0:01:48.7]} 49... Qe5+ {[%clk 0:02:19]} 50. Ka8 {[%clk
0:01:47.4]} 50... Rb1 {[%clk 0:02:05.7]} 51. b7 {[%clk 0:01:45.9]} 51... Qc7
{[%clk 0:01:58.3]} 52. b8=N {[%clk 0:01:34.7]} 52... Qb7# {[%clk 0:01:54.8]} 0-1

[Event "Live Chess"]
[Site "Chess.com"]
[Date "2023.05.21"]
[Round "-"]
[White "LutherSullivan"]
[Black "Rusty_Bridges"]
[Result "0-1"]
[WhiteElo "2164"]
[BlackElo "1531"]
[TimeControl "300"]
[EndTime "23:52:57 PDT"]
[Termination "Rusty_Bridges won on time"]

1. e4 {[%clk 0:04:58.2]} 1... d6 {[%clk 0:04:58.2]} 2. d4 {[%clk 0:04:56.4]}
2... Nf6 {[%clk 0:04:56.3]} 3. Nc3 {[%clk 0:04:55.8]} 3... Nbd7 {[%clk
0:04:54.5]} 4. f4 {[%clk 0:04:55.1]} 4... e5 {[%clk 0:04:51.2]} 5. dxe5 {[%clk
0:04:53.6]} 5... dxe5 {[%clk 0:04:50.9]} 6. f5 {[%clk 0:04:49.9]} 6... Bb4
{[%clk 0:04:48.1]} 7. Bd3 {[%clk 0:04:42.9]} 7... Nc5 {[%clk 0:04:46]} 8. Qe2
{[%clk 0:04:23.4]} 8... Bd7 {[%clk 0:04:32.9]} 9. Nf3 {[%clk 0:03:21.6]} 9...
Qe7 {[%clk 0:04:15.2]} 10. Bg5 {[%clk 0:03:17.1]} 10... h6 {[%clk 0:04:11.8]}
11. Bxf6 {[%clk 0:02:50.7]} 11... Qxf6 {[%clk 0:04:05.1]} 12. O-O {[%clk
0:02:49.1]} 12... Bxc3 {[%clk 0:04:02.3]} 13. bxc3 {[%clk 0:02:48.5]} 13... O-O
{[%clk 0:03:49.5]} 14. Rab1 {[%clk 0:02:43.3]} 14... Bc6 {[%clk 0:03:46.6]} 15.
g4 {[%clk 0:02:28.1]} 15... Na4 {[%clk 0:03:43.1]} 16. Rb3 {[%clk 0:02:23.6]}
16... Nc5 {[%clk 0:03:35.5]} 17. Rbb1 {[%clk 0:02:18]} 17... Na4 {[%clk
0:02:53.4]} 18. Qd2 {[%clk 0:02:13.5]} 18... Qd6 {[%clk 0:02:37.3]} 19. Kh1
{[%clk 0:02:07.5]} 19... Rfd8 {[%clk 0:02:29.2]} 20. g5 {[%clk 0:01:49.5]} 20...
h5 {[%clk 0:02:15.6]} 21. g6 {[%clk 0:01:38.9]} 21... fxg6 {[%clk 0:02:05]} 22.
fxg6 {[%clk 0:01:36.9]} 22... Nc5 {[%clk 0:02:03]} 23. Qg5 {[%clk 0:01:31.9]}
23... Nxe4 {[%clk 0:01:48.5]} 24. Bxe4 {[%clk 0:00:52]} 24... Bxe4 {[%clk
0:01:44.8]} 25. Qxh5 {[%clk 0:00:40.6]} 25... Qxg6 {[%clk 0:01:13.3]} 26. Qxe5
{[%clk 0:00:33.3]} 26... Bc6 {[%clk 0:00:42.6]} 27. c4 {[%clk 0:00:18.3]} 27...
Re8 {[%clk 0:00:40.4]} 28. Qf4 {[%clk 0:00:15.6]} 28... Rf8 {[%clk 0:00:38.7]}
29. Qe3 {[%clk 0:00:14.5]} 29... Rae8 {[%clk 0:00:36.1]} 30. Qa3 {[%clk
0:00:13.3]} 30... a6 {[%clk 0:00:33.8]} 31. Rb3 {[%clk 0:00:11.9]} 31... Qe4
{[%clk 0:00:30.7]} 32. Kg2 {[%clk 0:00:09.4]} 32... Qg4+ {[%clk 0:00:29.1]} 33.
Kh1 {[%clk 0:00:08.2]} 33... Bxf3+ {[%clk 0:00:26.2]} 34. Rbxf3 {[%clk
0:00:07.8]} 34... Rxf3 {[%clk 0:00:24.9]} 35. Qxf3 {[%clk 0:00:06.3]} 35... Qxc4
{[%clk 0:00:20.6]} 36. h4 {[%clk 0:00:03.1]} 36... Qc6 {[%clk 0:00:18.9]} 37. h5
{[%clk 0:00:02.6]} 37... Qxf3+ {[%clk 0:00:16.5]} 38. Rxf3 {[%clk 0:00:02.3]}
38... c6 {[%clk 0:00:14.2]} 39. Rc3 {[%clk 0:00:01.9]} 39... Re1+ {[%clk
0:00:12.4]} 40. Kg2 {[%clk 0:00:01.5]} 40... Re2+ {[%clk 0:00:11.7]} 41. Kf3
{[%clk 0:00:01.1]} 41... Rh2 {[%clk 0:00:11]} 42. Kg4 {[%clk 0:00:00.4]} 42...
Rg2+ {[%clk 0:00:10.2]} 0-1

[Event "Live Chess"]
[Site "Chess.com"]
[Date "2023.05.21"]
[Round "-"]
[White "smoggyrabbit"]
[Black "Denz14"]
[Result "1-0"]
[WhiteElo "1734"]
[BlackElo "1028"]
[TimeControl "300"]
[EndTime "23:52:58 PDT"]
[Termination "smoggyrabbit won by checkmate"]

1. d4 {[%clk 0:04:58.8]} 1... Nf6 {[%clk 0:04:42.2]} 2. Nf3 {[%clk 0:04:57.3]}
2... d6 {[%clk 0:04:42.1]} 3. e3 {[%clk 0:04:56.1]} 3... g6 {[%clk 0:04:41.6]}
4. Be2 {[%clk 0:04:51.3]} 4... Bg7 {[%clk 0:04:41.5]} 5. O-O {[%clk 0:04:50.3]}
5... O-O {[%clk 0:04:41.2]} 6. b3 {[%clk 0:04:49.2]} 6... c5 {[%clk 0:04:36.5]}
7. Bb2 {[%clk 0:04:47.2]} 7... b6 {[%clk 0:04:34.6]} 8. Nbd2 {[%clk 0:04:43.7]}
8... Bb7 {[%clk 0:04:33.3]} 9. c4 {[%clk 0:04:42.2]} 9... cxd4 {[%clk
0:04:29.9]} 10. exd4 {[%clk 0:04:41.3]} 10... Nbd7 {[%clk 0:04:20.9]} 11. Qc2
{[%clk 0:04:30.7]} 11... Rc8 {[%clk 0:04:16]} 12. Rfe1 {[%clk 0:04:23.9]} 12...
e5 {[%clk 0:04:05.5]} 13. dxe5 {[%clk 0:04:20.2]} 13... dxe5 {[%clk 0:03:59]}
14. Nxe5 {[%clk 0:04:16.8]} 14... Nxe5 {[%clk 0:03:52.2]} 15. Bxe5 {[%clk
0:04:14.5]} 15... Re8 {[%clk 0:03:40]} 16. Bb2 {[%clk 0:04:05.1]} 16... Qc7
{[%clk 0:03:25.6]} 17. Rad1 {[%clk 0:04:01.9]} 17... Qc6 {[%clk 0:03:23.7]} 18.
Bf3 {[%clk 0:03:57]} 18... Rxe1+ {[%clk 0:03:19.3]} 19. Rxe1 {[%clk 0:03:55.9]}
19... Qc7 {[%clk 0:03:14.5]} 20. Bxb7 {[%clk 0:03:39.6]} 20... Qxb7 {[%clk
0:03:12.9]} 21. Nf3 {[%clk 0:03:36.3]} 21... b5 {[%clk 0:03:03.2]} 22. Ne5
{[%clk 0:03:14.8]} 22... bxc4 {[%clk 0:02:59.6]} 23. Nxc4 {[%clk 0:03:13.3]}
23... a5 {[%clk 0:02:45.5]} 24. Qd1 {[%clk 0:02:46.3]} 24... a4 {[%clk 0:02:41]}
25. Nd6 {[%clk 0:02:41.4]} 25... Rd8 {[%clk 0:02:32.3]} 26. Nxb7 {[%clk
0:02:38.8]} 26... Rxd1 {[%clk 0:02:30.9]} 27. Rxd1 {[%clk 0:02:38]} 27... Ne4
{[%clk 0:01:58.1]} 28. Rd8+ {[%clk 0:02:33.2]} 28... Bf8 {[%clk 0:01:54.9]} 29.
Ba3 {[%clk 0:02:29.6]} 29... Nd6 {[%clk 0:01:44.1]} 30. Bxd6 {[%clk 0:02:26.2]}
30... Kg7 {[%clk 0:01:41.9]} 31. Bxf8+ {[%clk 0:02:23.9]} 31... Kg8 {[%clk
0:01:26.1]} 32. Bh6# {[%clk 0:02:21.9]} 1-0

[Event "Live Chess"]
[Site "Chess.com"]
[Date "2023.05.21"]
[Round "-"]
[White "Conradical12"]
[Black "minenko-1958"]
[Result "0-1"]
[WhiteElo "1568"]
[BlackElo "1478"]
[TimeControl "300"]
[EndTime "23:53:12 PDT"]
[Termination "minenko-1958 won by resignation"]

1. e4 {[%clk 0:04:55.1]} 1... e5 {[%clk 0:04:58.6]} 2. Nf3 {[%clk 0:04:54.2]}
2... d6 {[%clk 0:04:56.8]} 3. Bc4 {[%clk 0:04:52.6]} 3... h6 {[%clk 0:04:52.1]}
4. O-O {[%clk 0:04:48.7]} 4... Nf6 {[%clk 0:04:50.5]} 5. d4 {[%clk 0:04:45.1]}
5... exd4 {[%clk 0:04:47.4]} 6. Qxd4 {[%clk 0:04:42.3]} 6... Nc6 {[%clk
0:04:45.3]} 7. Qd1 {[%clk 0:04:35.5]} 7... Be7 {[%clk 0:04:40.9]} 8. Be3 {[%clk
0:04:28.8]} 8... Nxe4 {[%clk 0:04:38.3]} 9. Bd3 {[%clk 0:04:26.6]} 9... Ng5
{[%clk 0:04:34.4]} 10. Bxg5 {[%clk 0:03:44.4]} 10... Bxg5 {[%clk 0:04:32.2]} 11.
Re1+ {[%clk 0:03:42.6]} 11... Be7 {[%clk 0:04:29.6]} 12. Be4 {[%clk 0:03:38.9]}
12... O-O {[%clk 0:04:21.3]} 13. Qe2 {[%clk 0:03:35.5]} 13... Bf6 {[%clk
0:04:17.6]} 14. Bxc6 {[%clk 0:03:32]} 14... bxc6 {[%clk 0:04:10.6]} 15. c3
{[%clk 0:03:29.6]} 15... Bd7 {[%clk 0:04:01.9]} 16. Nbd2 {[%clk 0:03:17.1]}
16... d5 {[%clk 0:03:58.3]} 17. Qd3 {[%clk 0:03:11.6]} 17... Be6 {[%clk
0:03:47.5]} 18. Qa6 {[%clk 0:03:05.5]} 18... Qd7 {[%clk 0:03:44.1]} 19. c4
{[%clk 0:02:55.4]} 19... Rfb8 {[%clk 0:03:37.9]} 20. cxd5 {[%clk 0:02:10.5]}
20... cxd5 {[%clk 0:03:30.2]} 21. Rad1 {[%clk 0:02:06.7]} 21... Rxb2 {[%clk
0:03:23.2]} 22. Ne4 {[%clk 0:02:00.4]} 22... Rb6 {[%clk 0:03:12.9]} 23. Nxf6+
{[%clk 0:01:54.3]} 23... gxf6 {[%clk 0:03:08.7]} 24. Nh4 {[%clk 0:01:40]} 24...
Rxa6 {[%clk 0:03:03.9]} 0-1

[Event "Live Chess"]
[Site "Chess.com"]
[Date "2023.05.21"]
[Round "-"]
[White "AttackingSnowLeopard"]
[Black "BillythekidFellowes"]
[Result "1-0"]
[WhiteElo "2174"]
[BlackElo "2014"]
[TimeControl "300"]
[EndTime "23:53:12 PDT"]
[Termination "AttackingSnowLeopard won by resignation"]

1. d4 {[%clk 0:04:57.1]} 1... g6 {[%clk 0:04:59]} 2. c4 {[%clk 0:04:55.6]} 2...
Bg7 {[%clk 0:04:58.6]} 3. Nc3 {[%clk 0:04:54.9]} 3... d6 {[%clk 0:04:58.1]} 4.
e4 {[%clk 0:04:53.7]} 4... Nd7 {[%clk 0:04:56.5]} 5. Be2 {[%clk 0:04:52.8]} 5...
c5 {[%clk 0:04:56.1]} 6. Nf3 {[%clk 0:04:50.4]} 6... cxd4 {[%clk 0:04:54.8]} 7.
Nxd4 {[%clk 0:04:49.2]} 7... e6 {[%clk 0:04:53.5]} 8. Ndb5 {[%clk 0:04:44.7]}
8... Bf8 {[%clk 0:04:45.4]} 9. Nxd6+ {[%clk 0:04:42.5]} 9... Bxd6 {[%clk
0:04:45.1]} 10. Qxd6 {[%clk 0:04:41.7]} 10... Ne7 {[%clk 0:04:44.7]} 11. Bg5
{[%clk 0:04:38.9]} 11... Nf8 {[%clk 0:04:41.3]} 12. Qe5 {[%clk 0:04:36.7]} 12...
Rg8 {[%clk 0:04:37.7]} 13. Rd1 {[%clk 0:04:34.7]} 13... Qb6 {[%clk 0:04:36.5]}
14. Nb5 {[%clk 0:04:29.6]} 14... Nd7 {[%clk 0:04:30.1]} 15. Nd6+ {[%clk
0:04:27.6]} 15... Kf8 {[%clk 0:04:28.9]} 16. Bh6+ {[%clk 0:04:26.2]} 1-0

[Event "Live Chess"]
[Site "Chess.com"]
[Date "2023.05.21"]
[Round "-"]
[White "EdenHazard8"]
[Black "Tushinskiy"]
[Result "0-1"]
[WhiteElo "1963"]
[BlackElo "2176"]
[TimeControl "300"]
[EndTime "23:53:12 PDT"]
[Termination "Tushinskiy won by resignation"]

1. e4 {[%clk 0:04:59]} 1... e5 {[%clk 0:04:57.3]} 2. Nf3 {[%clk 0:04:57.2]} 2...
d6 {[%clk 0:04:57.2]} 3. Bc4 {[%clk 0:04:56.1]} 3... Bg4 {[%clk 0:04:53.4]} 4.
d3 {[%clk 0:04:54.5]} 4... Nf6 {[%clk 0:04:52.4]} 5. h3 {[%clk 0:04:53.2]} 5...
Bh5 {[%clk 0:04:51.2]} 6. O-O {[%clk 0:04:52]} 6... Nbd7 {[%clk 0:04:50.6]} 7.
Nbd2 {[%clk 0:04:50.8]} 7... c6 {[%clk 0:04:49.9]} 8. c3 {[%clk 0:04:49.8]} 8...
Be7 {[%clk 0:04:49.3]} 9. Qb3 {[%clk 0:04:47.9]} 9... b5 {[%clk 0:04:48.4]} 10.
a4 {[%clk 0:04:36.6]} 10... bxc4 {[%clk 0:04:46.4]} 11. Nxc4 {[%clk 0:04:36.5]}
11... Bxf3 {[%clk 0:04:43.5]} 12. gxf3 {[%clk 0:04:35.3]} 12... O-O {[%clk
0:04:43.4]} 0-1

[Event "Live Chess"]
[Site "Chess.com"]
[Date "2023.05.21"]
[Round "-"]
[White "bedsdrout"]
[Black "Duke_of_Bebington"]
[Result "0-1"]
[WhiteElo "377"]
[BlackElo "1581"]
[TimeControl "300"]
[EndTime "23:53:21 PDT"]
[Termination "Duke_of_Bebington won on time"]

1. e4 {[%clk 0:04:58]} 1... e5 {[%clk 0:04:59]} 2. Nc3 {[%clk 0:04:45.4]} 2...
Nf6 {[%clk 0:04:56.3]} 3. Nf3 {[%clk 0:04:43.8]} 3... Nc6 {[%clk 0:04:53.9]} 4.
Bc4 {[%clk 0:04:40.8]} 4... Nxe4 {[%clk 0:04:51.9]} 5. Nxe4 {[%clk 0:04:36]}
5... d5 {[%clk 0:04:49.8]} 6. Neg5 {[%clk 0:04:29.9]} 6... h6 {[%clk 0:04:43.2]}
7. Nh3 {[%clk 0:04:16.8]} 7... Bxh3 {[%clk 0:04:31.8]} 8. d3 {[%clk 0:03:39.2]}
8... Bxg2 {[%clk 0:04:27.1]} 9. Nh4 {[%clk 0:02:24.9]} 9... Bxh1 {[%clk
0:04:19.4]} 10. Be3 {[%clk 0:02:04]} 10... dxc4 {[%clk 0:04:15.2]} 11. dxc4
{[%clk 0:02:01.9]} 11... Qxh4 {[%clk 0:04:13]} 12. Qe2 {[%clk 0:01:51.2]} 12...
Qe4 {[%clk 0:04:01.7]} 13. O-O-O {[%clk 0:01:49.3]} 13... Bf3 {[%clk 0:04:00.4]}
14. Qd2 {[%clk 0:01:32.9]} 14... Bxd1 {[%clk 0:03:57.4]} 15. Qxd1 {[%clk
0:01:10.9]} 15... Rd8 {[%clk 0:03:53.9]} 16. Qe2 {[%clk 0:00:57.5]} 16... Nd4
{[%clk 0:03:47.2]} 17. Qd3 {[%clk 0:00:51.2]} 17... Qxd3 {[%clk 0:03:44.2]} 18.
cxd3 {[%clk 0:00:48.6]} 18... Bb4 {[%clk 0:03:40.3]} 19. a3 {[%clk 0:00:40.7]}
19... Bd6 {[%clk 0:03:38.6]} 20. c5 {[%clk 0:00:21]} 20... Bxc5 {[%clk
0:03:36.2]} 21. f3 {[%clk 0:00:13.5]} 21... Nb3+ {[%clk 0:03:34.5]} 22. Kc2
{[%clk 0:00:10]} 22... Bxe3 {[%clk 0:03:34]} 23. Kxb3 {[%clk 0:00:08]} 23...
Rxd3+ {[%clk 0:03:32.9]} 24. Kc4 {[%clk 0:00:06.6]} 24... Rd4+ {[%clk
0:03:31.6]} 25. Kc3 {[%clk 0:00:04.4]} 25... Ke7 {[%clk 0:03:28.6]} 26. Kc2
{[%clk 0:00:02.2]} 26... Rhd8 {[%clk 0:03:27.1]} 0-1

[Event "Live Chess"]
[Site "Chess.com"]
[Date "2023.05.21"]
[Round "-"]
[White "JoeRoot66"]
[Black "KeithArkell"]
[Result "0-1"]
[WhiteElo "1924"]
[BlackElo "2555"]
[TimeControl "300"]
[EndTime "23:54:21 PDT"]
[Termination "KeithArkell won by resignation"]

1. e4 {[%clk 0:04:59.1]} 1... c6 {[%clk 0:04:58.2]} 2. Nf3 {[%clk 0:04:57.5]}
2... d5 {[%clk 0:04:57.4]} 3. Nc3 {[%clk 0:04:57.2]} 3... Bg4 {[%clk 0:04:56.3]}
4. h3 {[%clk 0:04:53]} 4... Bxf3 {[%clk 0:04:55.5]} 5. Qxf3 {[%clk 0:04:52.9]}
5... dxe4 {[%clk 0:04:54.8]} 6. Nxe4 {[%clk 0:04:52]} 6... Nd7 {[%clk
0:04:54.5]} 7. d4 {[%clk 0:04:48]} 7... Ndf6 {[%clk 0:04:53.5]} 8. c3 {[%clk
0:04:40]} 8... Nxe4 {[%clk 0:04:53.4]} 9. Qxe4 {[%clk 0:04:39.9]} 9... Nf6
{[%clk 0:04:52.4]} 10. Qf3 {[%clk 0:04:37.2]} 10... Qd5 {[%clk 0:04:48.7]} 11.
Be2 {[%clk 0:04:33.2]} 11... Qxf3 {[%clk 0:04:47.4]} 12. Bxf3 {[%clk 0:04:33.1]}
12... e6 {[%clk 0:04:46.9]} 13. Bf4 {[%clk 0:04:21.8]} 13... Rd8 {[%clk
0:04:45.4]} 14. O-O-O {[%clk 0:04:09.8]} 14... Bd6 {[%clk 0:04:44.3]} 15. Bxd6
{[%clk 0:04:05.7]} 15... Rxd6 {[%clk 0:04:43.2]} 16. Rhe1 {[%clk 0:04:04.8]}
16... Ke7 {[%clk 0:04:41.6]} 17. Kc2 {[%clk 0:03:59.1]} 17... Rhd8 {[%clk
0:04:40.7]} 18. b3 {[%clk 0:03:55.5]} 18... g5 {[%clk 0:04:39.5]} 19. Re5 {[%clk
0:03:46.2]} 19... h6 {[%clk 0:04:38.4]} 20. g3 {[%clk 0:03:34.7]} 20... b6
{[%clk 0:04:36.9]} 21. a4 {[%clk 0:03:20.2]} 21... c5 {[%clk 0:04:35.8]} 22.
dxc5 {[%clk 0:02:17.5]} 22... Rxd1 {[%clk 0:04:35.7]} 23. Bxd1 {[%clk
0:02:14.1]} 23... Nd7 {[%clk 0:04:34.8]} 24. Re3 {[%clk 0:02:00.3]} 24... Nxc5
{[%clk 0:04:33.6]} 25. Bf3 {[%clk 0:01:47.7]} 25... f5 {[%clk 0:04:23.2]} 26.
Bc6 {[%clk 0:01:39.8]} 26... Rd6 {[%clk 0:04:18.7]} 27. Bb5 {[%clk 0:01:23.8]}
27... Ne4 {[%clk 0:04:12.6]} 28. Re2 {[%clk 0:01:09.2]} 28... Kf6 {[%clk
0:04:07.5]} 29. Bd3 {[%clk 0:01:02.3]} 29... Nc5 {[%clk 0:04:06.3]} 30. Bb5
{[%clk 0:00:45]} 30... a5 {[%clk 0:03:34.5]} 31. f3 {[%clk 0:00:40.8]} 31... e5
{[%clk 0:03:27.9]} 32. b4 {[%clk 0:00:39.3]} 32... axb4 {[%clk 0:03:27.1]} 33.
cxb4 {[%clk 0:00:39.2]} 33... Ne6 {[%clk 0:03:26.4]} 34. Rd2 {[%clk 0:00:35.5]}
34... Nd4+ {[%clk 0:03:25.5]} 35. Kc3 {[%clk 0:00:31.8]} 35... Nxb5+ {[%clk
0:03:24.2]} 36. axb5 {[%clk 0:00:31.7]} 36... Rxd2 {[%clk 0:03:22.4]} 37. Kxd2
{[%clk 0:00:31.6]} 37... e4 {[%clk 0:03:18.3]} 38. fxe4 {[%clk 0:00:25.3]} 38...
fxe4 {[%clk 0:03:17]} 39. g4 {[%clk 0:00:24.1]} 39... Ke5 {[%clk 0:03:15]} 40.
Ke3 {[%clk 0:00:23.7]} 40... Kd5 {[%clk 0:03:14.3]} 41. Ke2 {[%clk 0:00:19.4]}
41... Kd4 {[%clk 0:03:13.1]} 42. Kd2 {[%clk 0:00:19.2]} 42... e3+ {[%clk
0:03:12.4]} 43. Ke2 {[%clk 0:00:18.5]} 43... Ke4 {[%clk 0:03:11.7]} 44. Ke1
{[%clk 0:00:18.2]} 44... Kd3 {[%clk 0:03:10.7]} 45. Kd1 {[%clk 0:00:17.7]} 45...
e2+ {[%clk 0:03:09.9]} 46. Ke1 {[%clk 0:00:17.2]} 46... Ke3 {[%clk 0:03:07.1]}
47. h4 {[%clk 0:00:16.5]} 47... gxh4 {[%clk 0:03:06.3]} 48. g5 {[%clk
0:00:16.1]} 48... h3 {[%clk 0:03:05.8]} 0-1

[Event "Live Chess"]
[Site "Chess.com"]
[Date "2023.05.21"]
[Round "-"]
[White "DaveL5678"]
[Black "ProfPoisson"]
[Result "0-1"]
[WhiteElo "1017"]
[BlackElo "1184"]
[TimeControl "300"]
[EndTime "23:54:23 PDT"]
[Termination "ProfPoisson won by checkmate"]

1. e4 {[%clk 0:04:56.6]} 1... e5 {[%clk 0:04:57.9]} 2. Nf3 {[%clk 0:04:53.7]}
2... Nf6 {[%clk 0:04:55.1]} 3. Nxe5 {[%clk 0:04:48.7]} 3... Nxe4 {[%clk
0:04:52.9]} 4. Qe2 {[%clk 0:04:44.3]} 4... Qe7 {[%clk 0:04:50.3]} 5. Qxe4 {[%clk
0:04:41.9]} 5... d6 {[%clk 0:04:47.9]} 6. d4 {[%clk 0:04:22.4]} 6... dxe5 {[%clk
0:04:46]} 7. Qxe5 {[%clk 0:04:18.7]} 7... Qxe5+ {[%clk 0:04:43.9]} 8. dxe5
{[%clk 0:04:16.4]} 8... Nc6 {[%clk 0:04:43.8]} 9. Bb5 {[%clk 0:04:11.7]} 9...
Bd7 {[%clk 0:04:41.9]} 10. Bxc6 {[%clk 0:04:07.5]} 10... Bxc6 {[%clk 0:04:39.8]}
11. O-O {[%clk 0:04:06.8]} 11... O-O-O {[%clk 0:04:38.5]} 12. Bf4 {[%clk
0:04:01.2]} 12... g5 {[%clk 0:04:35]} 13. Bg3 {[%clk 0:03:58]} 13... h5 {[%clk
0:04:31.8]} 14. h3 {[%clk 0:03:49]} 14... h4 {[%clk 0:04:25]} 15. Bh2 {[%clk
0:03:47.1]} 15... Bg7 {[%clk 0:04:19]} 16. Nc3 {[%clk 0:03:42.2]} 16... Rd2
{[%clk 0:04:15.1]} 17. Rac1 {[%clk 0:03:35.7]} 17... f6 {[%clk 0:04:00.2]} 18.
exf6 {[%clk 0:03:31.4]} 18... Bxf6 {[%clk 0:03:58.1]} 19. a4 {[%clk 0:03:28.9]}
19... Bxc3 {[%clk 0:03:46.1]} 20. bxc3 {[%clk 0:03:26.5]} 20... Bxa4 {[%clk
0:03:44.7]} 21. Ra1 {[%clk 0:03:21]} 21... b5 {[%clk 0:03:22.2]} 22. Be5 {[%clk
0:03:06.8]} 22... Re8 {[%clk 0:03:10.6]} 23. Bd4 {[%clk 0:03:02.6]} 23... Bxc2
{[%clk 0:02:55.6]} 24. Rxa7 {[%clk 0:02:39.6]} 24... Bd3 {[%clk 0:02:45.8]} 25.
Ra8+ {[%clk 0:02:29]} 25... Kd7 {[%clk 0:02:42.4]} 26. Rxe8 {[%clk 0:02:27.3]}
26... Kxe8 {[%clk 0:02:40.7]} 27. Re1+ {[%clk 0:02:25.9]} 27... Kd7 {[%clk
0:02:35.2]} 28. Rb1 {[%clk 0:02:16.2]} 28... Kd6 {[%clk 0:02:29.1]} 29. Rxb5
{[%clk 0:02:13.2]} 29... Bxb5 {[%clk 0:02:26.4]} 30. Bf6 {[%clk 0:02:06.1]}
30... Rd5 {[%clk 0:02:18.6]} 31. Kh2 {[%clk 0:01:58.8]} 31... Ke6 {[%clk
0:02:16.4]} 32. Bd4 {[%clk 0:01:56.1]} 32... Kf5 {[%clk 0:02:08.7]} 33. g3
{[%clk 0:01:49.3]} 33... c5 {[%clk 0:02:02.4]} 34. g4+ {[%clk 0:01:41.9]} 34...
Kf4 {[%clk 0:01:58.9]} 35. Bf6 {[%clk 0:01:36.8]} 35... Rd2 {[%clk 0:01:53.6]}
36. Kg2 {[%clk 0:01:35]} 36... Rd1 {[%clk 0:01:40.1]} 37. Bg7 {[%clk 0:01:22.8]}
37... Bf1+ {[%clk 0:01:38]} 38. Kh2 {[%clk 0:01:18.7]} 38... Kf3 {[%clk
0:01:31.5]} 39. c4 {[%clk 0:01:12.1]} 39... Kxf2 {[%clk 0:01:27.3]} 40. Bd4+
{[%clk 0:01:04.9]} 40... Kf3 {[%clk 0:01:25.1]} 41. Bxc5 {[%clk 0:01:03.4]}
41... Rd2+ {[%clk 0:01:18.5]} 42. Kg1 {[%clk 0:01:00.3]} 42... Bxh3 {[%clk
0:01:13.6]} 43. Bf2 {[%clk 0:00:50.3]} 43... Rxf2 {[%clk 0:01:07.8]} 44. Kh1
{[%clk 0:00:48.9]} 44... Kg3 {[%clk 0:01:01.5]} 45. c5 {[%clk 0:00:45]} 45...
Rf1# {[%clk 0:01:00.1]} 0-1

[Event "Live Chess"]
[Site "Chess.com"]
[Date "2023.05.21"]
[Round "-"]
[White "Jo1ts"]
[Black "mirandaasilva"]
[Result "0-1"]
[WhiteElo "838"]
[BlackElo "1628"]
[TimeControl "300"]
[EndTime "23:54:47 PDT"]
[Termination "mirandaasilva won by resignation"]

1. d4 {[%clk 0:04:58.3]} 1... g6 {[%clk 0:04:56.1]} 2. Bf4 {[%clk 0:04:57.8]}
2... d6 {[%clk 0:04:54.4]} 3. Nf3 {[%clk 0:04:57.4]} 3... Bg7 {[%clk 0:04:54.2]}
4. e3 {[%clk 0:04:56.8]} 4... Nd7 {[%clk 0:04:53.7]} 5. Nbd2 {[%clk 0:04:55.4]}
5... Ngf6 {[%clk 0:04:53.2]} 6. Bd3 {[%clk 0:04:54.6]} 6... Nh5 {[%clk
0:04:52.2]} 7. Bg3 {[%clk 0:04:51.5]} 7... Nxg3 {[%clk 0:04:51.2]} 8. hxg3
{[%clk 0:04:51.4]} 8... e5 {[%clk 0:04:48.6]} 9. Be2 {[%clk 0:04:45]} 9... Qe7
{[%clk 0:04:43]} 10. c3 {[%clk 0:04:43.1]} 10... f5 {[%clk 0:04:40.9]} 11. e4
{[%clk 0:04:38.6]} 11... Nf6 {[%clk 0:04:33.7]} 12. exf5 {[%clk 0:04:33.5]}
12... Bxf5 {[%clk 0:04:33.6]} 13. dxe5 {[%clk 0:04:21]} 13... dxe5 {[%clk
0:04:33.5]} 14. Nh4 {[%clk 0:04:03.8]} 14... Be6 {[%clk 0:04:16.4]} 15. f4
{[%clk 0:03:47.8]} 15... exf4 {[%clk 0:04:08.1]} 16. gxf4 {[%clk 0:03:45.3]}
16... O-O-O {[%clk 0:04:02.2]} 17. Nb3 {[%clk 0:03:29.5]} 17... Rxd1+ {[%clk
0:03:58.8]} 0-1